Cogmind - Beta 14 @@@ ROGUE MODE // 2024.09.12 @ 16:42:53 Player: Dull Result: Destroyed by X-57 Shotgunner with High-powered Shotgun Performance ------------- Evolutions (2) 1000 Regions Visited (4) 800 Robots Destroyed (95) 475 Value Destroyed (2685) 2685 Prototype IDs (8) 160 Alien Tech Used (0) 0 Bonus (71) 71 TOTAL SCORE: 5191 Bonus ------- High Alert Combat Kills 71 Cogmind --------- Core Integrity 0/550 Matter 246/300 Energy 20/100 System Corruption 2% Temperature Cool (0) Movement Flying (394) Ox5 Location -8/Materials Parts ------- > --- POWER (1) -------- (None) > --- PROPULSION (4) --- Cesium-ion Thruster Improved VTOL Module Improved VTOL Module > --- UTILITY (4) ------ Huge Storage Unit > --- WEAPON (2) ------- Heavy Hammer > --- INVENTORY (25) --- Light Nuclear Core Improved Cesium-ion Thruster Improved Cesium-ion Thruster Improved Cesium-ion Thruster Improved Cesium-ion Thruster Improved Heat Sink Advanced Weight Redist. System Subdweller Optics Sensor Array Improved Sensor Array Improved Signal Interpreter Terrain Scanner ECM Suite ECM Suite Field Recycling Unit (9) High-powered Shotgun Peak State ------------ > --- POWER ------------ Nuclear Core > --- PROPULSION ------- Light Treads Light Treads Light Treads Wheel > --- UTILITY ---------- Huge Storage Unit Particle Charger Reactive Plating Field Recycling Unit > --- WEAPON ----------- Cooled Pulse Rifle High-powered Shotgun > --- INVENTORY -------- Improved Ion Engine Light Nuclear Core Cesium-ion Thruster Improved VTOL Module Improved VTOL Module Improved Cesium-ion Thruster Improved Cesium-ion Thruster Improved Cesium-ion Thruster Improved Cesium-ion Thruster Improved Heat Sink Advanced Weight Redist. System Subdweller Optics Sensor Array Improved Sensor Array Improved Signal Interpreter Terrain Scanner Target Analyzer Recoil Stabilizer ECM Suite ECM Suite Core Shielding Cooled Pulse Rifle High-powered Shotgun Heavy Hammer [Rating: 31] Favorites ----------- Power Ion Engine Engine Ion Engine Power Core Nuclear Core Propulsion Light Treads Treads Light Treads Leg Aluminum Leg Wheel Wheel Hover Unit Hover Unit Flight Unit Improved VTOL Module Utility Huge Storage Unit Device Improved Heat Sink Storage Huge Storage Unit Processor Target Analyzer Protection Scrap Shield Weapon Heavy Assault Rifle Energy Gun Riot Gun Energy Cannon Advanced Beam Cannon Ballistic Gun Heavy Assault Rifle Ballistic Cannon Battle Cannon Launcher Grenade Launcher Special Weapon Plasma Cutter Impact Weapon Heavy Hammer Build | -11 -10 -10 -10 -8 ------- Run | Yrd Mat Min Sub Mat Slots Evolved 4 | . . . . 4 Power . | . . . . . Propulsion 2 | . . . . 2 Utility 2 | . . . . 2 Weapon . | . . . . . Parts Attached 99 | . 19 10 9 61 Power 13 | . 3 1 2 7 Engine 12 | . 3 1 2 6 Core 1 | . . . . 1 Reactor . | . . . . . Propulsion 26 | . 6 1 3 16 Treads 13 | . 6 1 3 3 Leg 1 | . . . . 1 Wheel 4 | . . . . 4 Hover 2 | . . . . 2 Flight 6 | . . . . 6 Utility 25 | . 6 . . 19 Device 13 | . 3 . . 10 Storage 3 | . 3 . . . Processor 1 | . . . . 1 Hackware . | . . . . . Protection 8 | . . . . 8 Artifact . | . . . . . Weapon 35 | . 4 8 4 19 Energy Gun 8 | . . 1 1 6 Energy Cannon 5 | . 2 2 . 1 Ballistic Gun 10 | . 2 2 1 5 Ballistic Cannon 2 | . . . 1 1 Launcher 7 | . . 2 1 4 Special Weapon 1 | . . 1 . . Impact Weapon 2 | . . . . 2 Slashing Weapon . | . . . . . Piercing Weapon . | . . . . . Special Melee Weapon . | . . . . . Unidentified Prototypes 6 | . 1 . . 5 Parts Lost 38 | . 1 2 3 32 Power 8 | . 1 1 . 6 Propulsion 10 | . . 1 1 8 Utility 10 | . . . . 10 Weapon 10 | . . . 2 8 Highest Loss Streak 12 | . 1 1 3 12 To Critical Strikes 1 | . . . . 1 Average Slot Usage (%) 95 | . 99 99 99 84 Engine 12 | . 14 13 14 7 Treads 24 | . 26 27 28 17 Hover 2 | . . . . 7 Device 13 | . 14 14 14 13 Storage 12 | . 14 14 14 9 Protection 2 | . . . . 8 Energy Gun 3 | . 4 . 4 4 Energy Cannon 8 | . 11 13 9 1 Ballistic Gun 10 | . 11 13 10 7 Peak Build Rating 31 | 6 15 15 16 31 Average Rating 16 | 6 12 14 15 22 On Entrance 11 | 6 6 15 15 16 Naked Turns . | . . . . . Heaviest Build 115 | 13 93 93 93 115 Greatest Support 40 | 20 40 40 40 40 Greatest Overweight (x) 30 | . 2 4 2 30 Average Overweight (x) 2 | . 1 2 2 4 Largest Inventory Capacity 25 | 8 25 25 25 25 Average Capacity 23 | 8 20 25 25 25 Most Carried 25 | 8 25 25 25 25 Average Carried 22 | 6 16 24 24 23 Final Capacity 25 | 8 25 25 25 25 Final Carried 25 | 8 25 23 25 16 Class Distribution -------------------- 81% | Mutant 18% | Scavenger-Mutant Dominant Class ---------------- Mutant | -10/Materials Mutant | -10/Mines Mutant | -10/Subcaves Scavenger-Mutant | -8/Materials Resources | -11 -10 -10 -10 -8 ----------- Run | Yrd Mat Min Sub Mat Matter Collected 2017 | 200 350 267 125 1075 Remotely 737 | . 110 . . 627 Salvage Created 3472 | 93 750 386 156 2087 Parts 166 | 4 37 28 11 86 Haulers Intercepted 4 | . 2 . . 2 Recyclers Shooed 6 | . . 1 . 5 Parts Field Recycled 9 | . . . . 9 Retrieved Matter 64 | . . . . 64 Parts Self-Destructed 10 | . . . 10 . Prevented . | . . . . . Kills | -11 -10 -10 -10 -8 ------- Run | Yrd Mat Min Sub Mat Combat Hostiles Destroyed 63 | . 9 10 7 37 Melee 1 | . . . . 1 Guns 29 | . 5 2 2 20 Cannons 10 | . 4 4 . 2 AOE 21 | . . 4 4 13 Classes Destroyed 14 | 2 3 1 1 7 Worker 5 | . . . . 5 Builder 2 | . . . . 2 Tunneler 3 | 1 . 2 . . Hauler 4 | . 2 . . 2 Recycler 12 | 1 2 1 . 8 Mechanic 1 | . . . . 1 Watcher 6 | . 2 . . 4 Swarmer 12 | . . 6 2 4 Grunt 35 | . 9 4 . 22 Brawler 2 | . . . . 2 Duelist 2 | . . . . 2 Sentry 4 | . . . . 4 Specialist 3 | . . . . 3 Subdweller 5 | . . . 5 . Best Kill Streak 9 | 2 5 3 2 9 Combat Bots Only 5 | . 4 3 2 5 Max Kills in Single Turn 5 | 1 1 2 1 5 Gunslinging . | . . . . . Exploded 2 | . . 2 1 2 Melee 1 | . . . . 1 Uniques/NPCs Destroyed . | . . . . . Combat | -11 -10 -10 -10 -8 -------- Run | Yrd Mat Min Sub Mat Hostile Shots Fired 498 | . 46 54 37 361 Missed 147 | . 11 11 8 117 Damage Taken 5441 | . 529 443 601 3868 Core 799 | . 75 17 145 562 Absorbed by Shields . | . . . . . Redirected to Shielding 56 | . . . . 56 Ignored by Resistances 126 | . . . . 126 Regen/Repaired (Parts) 90 | . 90 . . . Core Remaining (%) 52 | 100 . . 5 . Volleys Fired 234 | 4 41 32 48 109 Largest 2 | 2 2 2 2 2 Hottest 115 | 90 91 98 91 115 Shots Fired 404 | 8 71 62 73 190 Gun 263 | 8 44 27 27 157 Cannon 117 | . 27 30 39 21 Launcher 24 | . . 5 7 12 Special . | . . . . . Kinetic 185 | . 38 27 18 102 Thermal 170 | 8 33 30 36 63 Explosive 12 | . . 5 7 . Electromagnetic 37 | . . . 12 25 Robot Hit Streak 18 | 4 18 7 9 15 Robot Miss Streak 8 | 1 3 6 4 8 Penetration Max . | . . . . . Secondary Targets 4 | . . . . 4 Max Gunslinging Chain 1 | . . . . 1 Shots Hit Robots 259 | 5 49 31 31 143 Core Hits 154 | 3 19 18 11 103 Critical Kills 1 | . . . 1 . Critical Parts Destroyed 5 | . . . . 5 Critical Strikes 12 | 1 . . 1 10 Burn 6 | 1 . . . 5 Meltdown 1 | . . . 1 . Destroy 2 | . . . . 2 Smash 3 | . . . . 3 Melee Attacks 11 | . . . . 11 Impact 11 | . . . . 11 Slashing . | . . . . . Piercing . | . . . . . Sneak Attacks 3 | . . . . 3 Combat Hostiles . | . . . . . Follow-up Attacks . | . . . . . Damage Inflicted 7437 | 61 882 746 735 5013 Guns 3306 | 61 428 175 262 2380 Cannons 1256 | . 450 369 144 293 Explosions 2364 | . . 202 329 1833 Melee 442 | . . . . 442 Ramming 69 | . 4 . . 65 Kinetic 3499 | . 382 175 157 2785 Thermal 2414 | 61 496 369 144 1344 Explosive 531 | . . 202 329 . Electromagnetic 482 | . . . 105 377 Impact 442 | . . . . 442 Slashing . | . . . . . Piercing . | . . . . . Highest Corruption 2 | . 2 2 2 2 Average Corruption 1 | . 2 2 2 1 Corruption Purged . | . . . . . Corruption Blocked . | . . . . . Effects 100 | . 24 22 34 20 Message Errors 30 | . 5 6 14 5 Matter Fused 20 | . 7 6 6 1 Heat Flow Errors 14 | . 3 4 4 3 Energy Discharges 11 | . 3 2 4 2 Parts Fused 2 | . 1 1 . . Data Loss (minor) 10 | . 4 1 1 4 Data Loss (major) 5 | . 1 . 3 1 Misfires 3 | . . 1 1 1 Alerts 4 | . . 1 1 2 Weapon Failures 1 | . . . . 1 Overload Shots . | . . . . . Overflow Damage 455 | . . 24 . 431 Projectiles 21 | . . 21 . . Explosions 122 | . . 3 . 119 Melee 312 | . . . . 312 Knockbacks 1 | . . . . 1 Impact 1 | . . . . 1 Kinetic . | . . . . . Secondary . | . . . . . Self-Inflicted Damage 293 | . . 28 7 258 Shots 9 | . . 1 1 7 Rammed 12 | . 1 . . 11 Targets Rammed 14 | . 1 . . 13 Kicked . | . . . . . Crushed 2 | . . . . 2 Highest Temperature 246 | 120 147 246 175 238 Average Temperature 48 | 61 52 81 78 36 Received Heat Transfer 1983 | . 264 111 6 1602 Siege Activations . | . . . . . Robots Corrupted 5 | . . . . 5 Combat Hostiles 1 | . . . . 1 Parts Fried 11 | . . . 1 10 Impact Corruptions 11 | . . . . 11 Robots Melted 1 | . . . 1 . Combat Hostiles 1 | . . . 1 . Parts Melted 5 | 1 . 1 1 2 Heat Transferred 4667 | 247 926 666 259 2569 Parts Sabotaged . | . . . . . Parts Stolen . | . . . . . Parts Stripped . | . . . . . Power Chain Reactions 5 | . . . . 5 Alert | -11 -10 -10 -10 -8 ------- Run | Yrd Mat Min Sub Mat Peak Influence 482 | 10 150 136 . 482 Initial 33 | . 6 33 . 2 Average 116 | 7 31 49 . 223 Maximum Alert Level 2 | . . . . 2 Low Security (%) 70 | 100 100 100 . 28 Level 1 26 | . . . . 64 Level 2 2 | . . . . 6 Level 3 . | . . . . . Level 4 . | . . . . . Level 5 . | . . . . . High Security . | . . . . . Max Security . | . . . . . Squads Dispatched 11 | . 1 . . 10 Investigation 3 | . 1 . . 2 Extermination . | . . . . . Reinforcement 5 | . . . . 5 Assault 2 | . . . . 2 Garrison 1 | . . . . 1 Intercept . | . . . . . Searches Triggered . | . . . . . Construction Impeded 1 | . . . . 1 Haulers Reinforced . | . . . . . Active Scanning Responses . | . . . . . Cargo Convoy Interrupts . | . . . . . Stealth | -11 -10 -10 -10 -8 --------- Run | Yrd Mat Min Sub Mat Distress Signals 3 | . . . . 3 Communications Jammed . | . . . . . Distress Signals . | . . . . . Times Spotted 92 | . 18 10 7 57 Peak Tracking Total 7 | . 3 3 2 7 Tactical Retreats 1 | . . . . 1 Traps | -11 -10 -10 -10 -8 ------- Run | Yrd Mat Min Sub Mat Traps Triggered 4 | . 4 . . . Indirectly . | . . . . . Trap Hack Attempts . | . . . . . Triggered . | . . . . . Disarmed 4 | . . . . 4 Reprogrammed . | . . . . . Reused . | . . . . . Traps Extracted . | . . . . . Installed . | . . . . . Triggered 2 | . . . 2 . Machines | -11 -10 -10 -10 -8 ---------- Run | Yrd Mat Min Sub Mat Machines Disabled 9 | . 1 1 . 7 Max in Single Turn 2 | . 1 1 . 2 Machines Repaired . | . . . . . Machines Dismantled . | . . . . . Machines Sabotaged . | . . . . . Overloaded Fab Kills . | . . . . . Hacking | -11 -10 -10 -10 -8 --------- Run | Yrd Mat Min Sub Mat Machines Accessed 13 | . 4 1 . 8 Terminals 9 | . 2 1 . 6 Fabricators . | . . . . . Repair Stations 1 | . 1 . . . Recycling Units 2 | . 1 . . 1 Scanalyzers 1 | . . . . 1 Garrison Access . | . . . . . Total Hacks 33 | . 10 3 . 20 Successful 13 | . 2 2 . 9 Failed 20 | . 8 1 . 11 Catastrophic 6 | . 4 . . 2 Database Lockouts . | . . . . . Manual 6 | . 2 1 . 3 Terminals 24 | . 6 3 . 15 Fabricators . | . . . . . Repair Stations 2 | . 2 . . . Recycling Units 3 | . 2 . . 1 Scanalyzers 4 | . . . . 4 Garrison Access . | . . . . . Terminal Hacks 6 | . . 2 . 4 Prototype ID Bank 1 | . . . . 1 Branch Access Points 2 | . . 1 . 1 Recycling Unit Index 1 | . . . . 1 Disarm Traps 1 | . . . . 1 Dispatch Records 1 | . . 1 . . Fabricator Hacks . | . . . . . Repair Station Hacks 2 | . 2 . . . Scan Component 1 | . 1 . . . Repair 1 | . 1 . . . Recycling Unit Hacks 1 | . . . . 1 Retrieve Matter 1 | . . . . 1 Scanalyzer 4 | . . . . 4 Insert Component 2 | . . . . 2 Analyze 2 | . . . . 2 Garrison Access Hacks . | . . . . . Unauthorized Hacks . | . . . . . Terminals . | . . . . . Fabricators . | . . . . . Repair Stations . | . . . . . Recycling Units . | . . . . . Scanalyzers . | . . . . . Garrison Access . | . . . . . Data Cores Recovered . | . . . . . Used . | . . . . . Hacking Detections 10 | . 3 1 . 6 Full Trace Events 3 | . . . . 3 Feedback Events 1 | . . . . 1 Corruption 1 | . . . . 1 Feedback Blocked . | . . . . . Robot Schematics Acquired . | . . . . . Robots Built . | . . . . . Authchips . | . . . . . Time . | . . . . . Total Robot Build Rating . | . . . . . Part Schematics Acquired 1 | . . . . 1 Parts Built . | . . . . . Authchips . | . . . . . Time . | . . . . . Total Part Build Rating . | . . . . . Parts Repaired 1 | . 1 . . . Time 26 | . 26 . . . Parts Recycled . | . . . . . Recycled Matter . | . . . . . Retrieved Matter 51 | . . . . 51 Retrieved Components . | . . . . . Parts Scanalyzed 2 | . . . . 2 Part Schematics Acquired 1 | . . . . 1 Parts Damaged . | . . . . . Bothacking | -11 -10 -10 -10 -8 ------------ Run | Yrd Mat Min Sub Mat Used RIF Installer . | . . . . . Robots Hacked . | . . . . . Non-combat . | . . . . . Combat . | . . . . . Robot Hacks Applied . | . . . . . Relay Couplers Released . | . . . . . Fabnet Peak Effective % . | . . . . . Robots Rewired . | . . . . . Allies Hacked . | . . . . . Hacks Repelled . | . . . . . Allies | -11 -10 -10 -10 -8 -------- Run | Yrd Mat Min Sub Mat Total Allies . | . . . . . Largest Group . | . . . . . Highest-Rated Group . | . . . . . Highest-Rated Ally . | . . . . . Total Orders . | . . . . . Ally Attacks . | . . . . . Total Damage . | . . . . . Kills . | . . . . . Allies Corrupted . | . . . . . Allies Melted . | . . . . . Intel | -11 -10 -10 -10 -8 ------- Run | Yrd Mat Min Sub Mat Robot Analysis Total . | . . . . . Derelict Logs Recovered 2 | . . 1 1 . Drone Launches . | . . . . . Drone Recoveries . | . . . . . Exploration | -11 -10 -10 -10 -8 ------------- Run | Yrd Mat Min Sub Mat Turns Passed 9814 | 41 2212 1824 2825 2912 Spaces Moved 2911 | 23 784 527 825 752 Core 10 | . . . . 10 Treads 2501 | . 703 527 825 446 Legs 104 | 23 81 . . . Wheels 296 | . . . . 296 Hover . | . . . . . Flight . | . . . . . Fastest Speed 120 | 120 120 320 320 135 Average Speed 297 | 120 250 320 325 306 Slowest Speed 1550 | 120 320 480 340 1550 Overloaded Moves . | . . . . . Propulsion Burnouts . | . . . . . Robots Hopped . | . . . . . Cave-ins Triggered . | . . . . . Exploration Rate (%) 60 | 3 92 100 46 59 Regions Visited 4 Branch Regions 2 Pre-discovered Areas 1 | . . . 1 . Known Exits Taken . | . . . . . Unknown Exits Taken 4 | 1 1 1 1 . Scrap Searched 4 | . . 3 1 . Spaces Dug 1 | . . . . 1 Terrain Destroyed 236 | . . 38 42 156 Melee 1 | . . . . 1 Projectile 6 | . . . 1 5 AOE 229 | . . 38 41 150 Terrain Rammed . | . . . . . Walls Destroyed . | . . . . . Machines Disabled . | . . . . . Actions | -11 -10 -10 -10 -8 --------- Run | Yrd Mat Min Sub Mat Total 3622 | 28 964 604 899 1127 Wait 201 | . 75 26 . 100 Move 2907 | 22 783 526 824 752 Hop . | . . . . . Pick Up 83 | 2 26 4 9 42 Fast Attach 19 | . 3 2 1 13 Attach 38 | . 2 2 4 30 Detach 1 | . . . . 1 Swap 43 | . 14 6 4 19 Drop 69 | . 19 6 9 35 Fire 234 | 4 41 32 48 109 Melee 11 | . . . . 11 Ram 1 | . . . . 1 Kick . | . . . . . Crush 13 | . 1 . . 12 Escape Stasis . | . . . . . Rewire . | . . . . . Trap . | . . . . . Miscellaneous 2 | . . . . 2 Route ------- -11/Scrapyard -10/Materials (discovered 5 exits: [*Mat x2] / *Min x2 / [*Sub]) -10/Mines (discovered 3 exits: [*Mat x2] / [*Sub]) -10/Subcaves (discovered 2 exits: *Mat x2) -8/Materials (discovered 3 exits: [*Fac] / Sto x2) History --------- Turn | Location | Event 1 | -11/Scrapyard | Discovered new exit (range 3) 42 | -11/Scrapyard | Entered Materials 53 | -10/Materials | Discovered new exit (range 16) 247 | -10/Materials | Discovered new exit (range 16) 308 | -10/Materials | Build established: Mutant 659 | -10/Materials | Repaired Lgt. Treads 857 | -10/Materials | Discovered new exit (range 11) 1045 | -10/Materials | Discovered new exit (range 7) 1978 | -10/Materials | Discovered new exit (range 7) 2254 | -10/Materials | Entered Mines 2326 | -10/Mines | Learned Materials terminal intel 2718 | -10/Mines | Discovered new exit (range 6) 3565 | -10/Mines | Discovered new exit (range 4) 3577 | -10/Mines | Discovered new exit (range 9) 4078 | -10/Mines | Entered Subcaves 4422 | -10/Subcaves | Shifting Twisted Machinery released Riot Gun 4429 | -10/Subcaves | Shifting Twisted Machinery released Sub. Laser 4463 | -10/Subcaves | Core integrity fell below 50% 4474 | -10/Subcaves | Discovered new exit (range 10) 4586 | -10/Subcaves | Shifting Twisted Machinery released Flamer 4588 | -10/Subcaves | Shifting Twisted Machinery released Flamer 5994 | -10/Subcaves | Shifting Twisted Machinery released Sub. Shrapnel Launcher 6074 | -10/Subcaves | Core integrity fell below 20% 6089 | -10/Subcaves | Lost 3 parts (1n2w) 6152 | -10/Subcaves | Shifting Twisted Machinery released Unknown Ballistic Cannon 6395 | -10/Subcaves | Learned location of Mines (-9) 6684 | -10/Subcaves | Discovered new exit (range 16) 6903 | -10/Subcaves | Entered Materials 6903 | -8/Materials | Evolved 4 slots: Propulsion x2, Utility x2 6904 | -8/Materials | Loaded intel: 12 terminal locations 7532 | -8/Materials | Build established: Scavenger-Mutant 7976 | -8/Materials | Garrison activated, responded to threat 8022 | -8/Materials | Lost 3 parts (2p1n) 8095 | -8/Materials | Identified exit to Storage 8278 | -8/Materials | Build established: Mutant 8849 | -8/Materials | Lost 12 parts (2p3n4u3w) 9073 | -8/Materials | Discovered new exit (range 11) 9301 | -8/Materials | Build established: Scavenger-Mutant 9500 | -8/Materials | Core integrity fell below 50% 9703 | -8/Materials | First assault squad dispatched 9804 | -8/Materials | Core integrity fell below 20% 9815 | -8/Materials | Destroyed by X-57 Shotgunner with High-powered Shotgun Last Messages --------------- 09796_ Critical hit (Burn: +37). 09797_ Lgt. Treads destroyed. 09799_ I-25 Savior destroyed. 09799_ Lgt. Treads destroyed. 09800_ Nuclear Core destroyed. 09801_ X-57 Shotgunner suffers critical hit (Burn). 09802_ M-28 Smith repairs Imp. Terrain Scanner. 09802_ Core Shielding destroyed. 09803_ Cld. Pulse Rifle destroyed. 09806_ Critical hit (Destroy). 09806_ Hpw. Shotgun destroyed. 09806_ M-28 Smith repairs Lgt. Angular Momentum Engine. 09807_ Dropped Cld. Pulse Rifle. 09807_ Dropped Wheel. 09808_ Critical hit (Burn: +37). 09811_ G-50 Soldier suffers critical hit (Burn). 09812_ Discarded Target Analyzer. 09812_ M-28 Smith repairs X-57 Shotgunner. 09813_ Imp. Ion Engine destroyed. [Achievement: Tester] Map ----- +----------------------------------------------------+ | | | ??????????????????????????? | | ??????????????????????????? | | ??????????????????????????? | | ??????????????????????????? | | ??????????????????????????? | | ?????? ???????????????????? | | ?????? ???????????????????? | | ?????? ???????????????????? | | ?????# ???????????????????? | | ?????# ???????????>???????? | | ?????# ???????????????????? | | ?????# ###########????????? | | ?????# # [ #????????? | | ?????# # #????????? | | ?????# #= #????????? | | ###### # #????????? | | # # ##+##+##+##????????? | | # # !#?????????? | | # # #?######??? | | # *!=# ###!!!!##?? | | #g[g%+ ##! !#?? | | #gxgg#### """ ## #?? | | # *m!##"" """ ## ### | | #!=%*##"Y """ | | # @= ##"" | | ###;##### | | ???######=*""" | | ????#[ *%![""" | | ???##[ %=[%""" ########## | | ????#!!!=[[[ # | | ???##!! +% ! | | ???## % # "" | | ???##! # "" | | ???########+###### "" | | ???###### ???# = "T" | | ????????# """ !#?# """ | | ????????# """ #?# | | ????????# """ #?########## | | ????????# #??????????? | | ????????# ] [ #??????????? | | ????????########??????????? | | ??????????????????????????? | | ??????????????????????????? | | ??????????????????????????? | | ??????????????????????????? | | ??????????????????????????? | | ??????????????????????????? | | ??????????????????????????? | | ??????????????????????????? | +----------------------------------------------------+ Best States ------------- Heat Dissipation 55 Energy Generation 15 Energy Capacity 265 Matter Stores 300 Matter Capacity 300 Sight Range 16 Terrain Scan Density 10 Armor Coverage 800 Resistance: KI 20 Core Shielding 20 Evasion (%) 55 Target Analysis 5 Recoil Reduction 7 Particle Charging 15 Item Schematics ----------------- Sub. Optics | -8/Materials | Scanalyzed Robot Schematics ------------------ None Fabricated ------------ Nothing Alien Tech Used ----------------- None Achievements -------------- Tester Challenges ------------ None Game ------ Seed SigixPhaseRail Manual? 0 Play Time 00:53:53 Cumulative 61.6 hours Start 2024.09.12 @ 15:48:34 End 2024.09.12 @ 16:42:53 Sessions 1 Manual Loads 0 Difficulty Rogue Special Mode None Game No. 86 Rogue 86 Adventurer 0 Explorer 0 Win Type - Total 1 Types 1/0/0/0/0/0/0/0/0 Lore% 14 Gallery% 50 Achievement% 39 Wizard Run 0 Options --------- Layout 0 ASCII 0 Keyboard 0 Movement Mouse Keybinds 1 Fullscreen 1 Font 18/TerminusBold Map View 76x50 Zoom Use 0% Tactical HUD 1 Map Filters NONE Filters NONE Steam 1 RUN: 274be0b0-0b14-42a2-a55e-44d748e3a6b0